[Event "EUSA-ch Open 2019"]
[Site "Budapest"]
[Date "2019.07.25"]
[Round "3.5"]
[White "Harutyunian, Tigran K."]
[Black "Lewicki, Miroslaw"]
[Result "1-0"]
[ECO "A05"]
[WhiteElo "2539"]
[BlackElo "2351"]
[Annotator "ChessBase"]
[PlyCount "57"]
[EventDate "2019.07.23"]
[EventType "team-tourn"]
[EventCountry "HUN"]
[SourceTitle "playchess.com"]
[Source "ChessBase"]
[SourceQuality "1"]
[TimeControl "1500+10"]

1. Nf3 {[%emt 0:00:00]} Nf6 {[%emt 0:00:00]} 2. g3 {[%emt 0:00:00]} e6 {[%emt 0:00:00]} 3. Bg2 {[%emt 0:00:01]} b6 {[%emt 0:00:29]} 4. O-O {[%emt 0:00:24]} Bb7 {[%emt 0:00:02]} 5. c4 {[%emt 0:00:02]} Be7 {[%emt 0:00:04]} 6. Nc3 {[%emt 0:00:15]} O-O {[%emt 0:00:02]} 7. Re1 {[%emt 0:00:03]} d5 {[%emt 0:00:04]} 8. cxd5 {[%emt 0:00:03]} exd5 {[%emt 0:00:01]} 9. d4 {[%emt 0:00:03]} Nbd7 {[%emt 0:00:34]} 10. Bf4 {[%emt 0:00:07]} c5 {[%emt 0:00:06]} 11. Rc1 {[%emt 0:00:06]} Ne4 {[%emt 0:01:01]} 12. Qa4 {[%emt 0:02:16]} Ndf6 {[%emt 0:00:20]} 13. Red1 {[%emt 0:00:38]} Nxc3 {[%emt 0:01:08]} 14. Rxc3 {[%emt 0:00:03]} c4 {[%emt 0:01:29]} 15. Ne5 {[%emt 0:00:21]} a6 {[%emt 0:00:07]} 16. Nc6 {[%emt 0:01:23]} Qd7 {[%emt 0:00:21]} 17. Nxe7+ {[%emt 0:00:24]} Qxe7 {[%emt 0:00:03]} 18. Re3 {[%emt 0:00:15]} Qd8 {[%emt 0:00:02]} 19. Qb4 {[%emt 0:02:13]} b5 {[%emt 0:00:02]} 20. Re7 {[%emt 0:02:13]} a5 {[%emt 0:01:08]} 21. Qc5 {[%emt 0:00:36]} Ba6 {[%emt 0:03:02]} 22. Bc7 {[%emt 0:01:43]} Qc8 {[%emt 0:00:01]} 23. Bxd5 {[%emt 0:01:16]} Nxd5 {[%emt 0:00:11]} 24. Qxd5 {[%emt 0:00:01]} b4 {[%emt 0:00:38]} 25. Rc1 {[%emt 0:02:27]} c3 {[%emt 0:04:03]} 26. bxc3 {[%emt 0:00:11]} Bb7 {[%emt 0:00:03]} 27. Qb5 {[%emt 0:00:56]} Ra6 {[%emt 0:00:21]} 28. cxb4 {[%emt 0:00:38]} Ba8 {[%emt 0:00:29]} 29. d5 {[%emt 0:00:34]} 1-0

[Event "EUSA-ch Open 2019"]
[Site "Budapest"]
[Date "2019.07.25"]
[Round "3.6"]
[White "Molenda, Marcin"]
[Black "Petrosyan, Tigran S."]
[Result "0-1"]
[ECO "C44"]
[WhiteElo "2387"]
[BlackElo "2448"]
[Annotator "NA"]
[PlyCount "46"]
[EventDate "2019.07.23"]
[EventType "team-tourn"]
[EventCountry "HUN"]
[SourceTitle "playchess.com"]
[Source "ChessBase"]
[SourceQuality "1"]
[TimeControl "1500+10"]

1. e4 {[%emt 0:00:00]} e5 {[%emt 0:00:00]} 2. Nf3 {[%emt 0:00:00]} Nc6 {[%emt 0:00:00]} 3. d4 {[%emt 0:00:02]} exd4 {[%emt 0:00:00]} 4. Nxd4 {[%emt 0:00:02]} Qf6 {[%emt 0:00:00]} 5. Be3 {[%emt 0:01:04]} Bc5 {[%emt 0:00:02]} 6. c3 {[%emt 0:00:01]} Nge7 {[%emt 0:00:05]} 7. g3 {[%emt 0:00:21]} h5 {[%emt 0:02:39]} 8. Bg2 {[%emt 0:01:31]} d6 {[%emt 0:03:17]} 9. Nc2 {[%emt 0:01:57]} Bg4 {[%emt 0:01:36]} 10. f3 {[%emt 0:00:02]} Bxe3 {[%emt 0:00:42]} 11. Nxe3 {[%emt 0:00:01]} Bd7 {[%emt 0:00:04]} 12. Nd2 {[%emt 0:03:11]} h4 {[%emt 0:00:44]} 13. Qe2 {[%emt 0:00:23]} O-O-O {[%emt 0:01:46]} 14. O-O-O {[%emt 0:00:09]} g5 {[%emt 0:01:00]} 15. Rdf1 {[%emt 0:00:27]} h3 {[%emt 0:00:03]} 16. f4 {[%emt 0:08:36]} hxg2 {[%emt 0:00:16]} 17. Nxg2 {[%emt 0:00:01]} gxf4 {[%emt 0:00:35]} 18. Nxf4 {[%emt 0:00:05]} Qg5 {[%emt 0:01:04]} 19. Qe3 {[%emt 0:00:49]} Qa5 {[%emt 0:01:22]} 20. Kb1 {[%emt 0:00:04]} Ne5 {[%emt 0:00:09]} 21. h4 {[%emt 0:00:27]} f5 {[%emt 0:01:31]} 22. Ka1 {[%emt 0:00:27]} fxe4 {[%emt 0:00:59]} 23. Qxe4 {[%emt 0:00:15]} Bc6 0-1

[Event "EUSA-ch Open 2019"]
[Site "Budapest"]
[Date "2019.07.25"]
[Round "4.1"]
[White "Shevchenko, Kirill"]
[Black "Chigaev, Maksim"]
[Result "1/2-1/2"]
[ECO "E90"]
[WhiteElo "2536"]
[BlackElo "2640"]
[Annotator "RC"]
[PlyCount "112"]
[EventDate "2019.07.23"]
[EventType "team-tourn"]
[EventCountry "HUN"]
[SourceTitle "playchess.com"]
[Source "ChessBase"]
[SourceQuality "1"]
[TimeControl "1500+10"]

1. d4 {[%emt 0:00:00]} Nf6 {[%emt 0:00:00]} 2. c4 {[%emt 0:00:00]} g6 {[%emt 0:00:00]} 3. Nc3 {[%emt 0:00:00]} Bg7 {[%emt 0:00:00]} 4. e4 {[%emt 0:00:00]} d6 {[%emt 0:00:00]} 5. Nf3 {[%emt 0:00:00]} O-O {[%emt 0:00:00]} 6. Be3 {[%emt 0:00:02]} Na6 {[%emt 0:00:16]} 7. Be2 {[%emt 0:01:18]} e5 {[%emt 0:00:03]} 8. O-O {[%emt 0:02:41]} c6 {[%emt 0:00:06]} 9. Re1 Qe7 {[%emt 0:01:32]} 10. c5 {[%emt 0:02:55]} dxc5 {[%emt 0:00:03]} 11. dxe5 {[%emt 0:00:24]} Ng4 {[%emt 0:00:02]} 12. Bg5 {[%emt 0:01:04]} Qe6 {[%emt 0:01:08]} 13. Bf4 {[%emt 0:03:53]} Nxe5 {[%emt 0:00:57]} 14. Bxe5 {[%emt 0:01:12]} Bxe5 {[%emt 0:00:04]} 15. Nxe5 {[%emt 0:00:02]} Qxe5 {[%emt 0:00:03]} 16. Bxa6 {[%emt 0:00:01]} bxa6 {[%emt 0:00:02]} 17. Rc1 {[%emt 0:00:03]} Be6 {[%emt 0:01:33]} 18. Qa4 {[%emt 0:00:21]} Rab8 {[%emt 0:00:09]} 19. b3 {[%emt 0:00:21]} c4 {[%emt 0:01:13]} 20. bxc4 {[%emt 0:00:33]} Rb2 {[%emt 0:02:33]} 21. Qxc6 {[%emt 0:04:03]} Rc8 {[%emt 0:01:52]} 22. Qxa6 {[%emt 0:00:26]} Rxc4 {[%emt 0:00:40]} 23. Qa3 {[%emt 0:01:57]} Rd2 {[%emt 0:00:38]} 24. Nd5 {[%emt 0:01:03]} Qd4 {[%emt 0:01:34]} 25. Rf1 {[%emt 0:05:13]} Rxc1 {[%emt 0:00:19]} 26. Qxc1 {[%emt 0:00:01]} Rxa2 {[%emt 0:00:02]} 27. h4 {[%emt 0:00:43]} Bxd5 {[%emt 0:00:52]} 28. exd5 {[%emt 0:00:01]} Qxd5 {[%emt 0:00:01]} 29. Qc8+ {[%emt 0:00:13]} Kg7 {[%emt 0:00:04]} 30. Qc3+ {[%emt 0:00:02]} f6 {[%emt 0:05:42]} 31. Re1 {[%emt 0:00:31]} Qd6 {[%emt 0:00:01]} 32. Qb3 {[%emt 0:00:45]} Qd2 {[%emt 0:00:01]} 33. Qe3 {[%emt 0:00:26]} Qxe3 {[%emt 0:00:10]} 34. Rxe3 {[%emt 0:00:01]} Kf7 {[%emt 0:00:08]} 35. Rb3 {[%emt 0:00:03]} Re2 {[%emt 0:00:47]} 36. Ra3 {[%emt 0:00:23]} Re7 {[%emt 0:00:12]} 37. Ra6 {[%emt 0:00:00]} f5 {[%emt 0:00:18]} 38. Kh2 {[%emt 0:00:01]} Ke8 {[%emt 0:00:11]} 39. Kg3 {[%emt 0:00:14]} Kd8 {[%emt 0:00:15]} 40. Kf4 {[%emt 0:00:24]} Kc8 {[%emt 0:00:32]} 41. h5 {[%emt 0:00:00]} Kb7 {[%emt 0:00:25]} 42. Rf6 {[%emt 0:00:07]} Rg7 {[%emt 0:01:29]} 43. hxg6 {[%emt 0:00:01]} hxg6 {[%emt 0:00:02]} 44. Ke5 {[%emt 0:00:21]} a5 {[%emt 0:00:23]} 45. Kd4 {[%emt 0:00:03]} Rc7 {[%emt 0:02:19]} 46. Rxg6 {[%emt 0:00:01]} a4 {[%emt 0:00:01]} 47. Rg3 {[%emt 0:00:28]} Kb6 {[%emt 0:00:10]} 48. Rf3 {[%emt 0:00:26]} Ra7 {[%emt 0:00:51]} 49. Ra3 {[%emt 0:00:10]} Kb5 {[%emt 0:00:03]} 50. Kc3 {[%emt 0:00:01]} Re7 {[%emt 0:00:20]} 51. Ra2 {[%emt 0:00:08]} Rc7+ {[%emt 0:00:11]} 52. Kd4 {[%emt 0:00:02]} Re7 {[%emt 0:00:59]} 53. Kc3 {[%emt 0:00:09]} Ra7 {[%emt 0:00:23]} 54. g3 {[%emt 0:00:27]} Ra8 {[%emt 0:00:31]} 55. Re2 {[%emt 0:00:11]} a3 {[%emt 0:00:12]} 56. Kb3 {[%emt 0:00:01]} a2 {[%emt 0:00:50]} 1/2-1/2

[Event "EUSA-ch Open 2019"]
[Site "Budapest"]
[Date "2019.07.25"]
[Round "4.3"]
[White "Zaslavsky, Mikhail"]
[Black "Harutyunian, Tigran K."]
[Result "1/2-1/2"]
[ECO "A02"]
[WhiteElo "2405"]
[BlackElo "2539"]
[Annotator "ChessBase"]
[PlyCount "225"]
[EventDate "2019.07.23"]
[EventType "team-tourn"]
[EventCountry "HUN"]
[SourceTitle "playchess.com"]
[Source "ChessBase"]
[SourceQuality "1"]
[TimeControl "1500+10"]

1. f4 {[%emt 0:00:00]} Nf6 {[%emt 0:00:25]} 2. Nf3 {[%emt 0:00:00]} b6 {[%emt 0:00:18]} 3. e3 {[%emt 0:00:16]} Bb7 {[%emt 0:00:03]} 4. a4 {[%emt 0:00:01]} c5 {[%emt 0:00:25]} 5. a5 {[%emt 0:00:18]} bxa5 {[%emt 0:00:19]} 6. Nc3 {[%emt 0:00:36]} e6 {[%emt 0:00:18]} 7. b3 {[%emt 0:01:09]} Be7 {[%emt 0:00:04]} 8. Bb2 {[%emt 0:00:01]} O-O {[%emt 0:00:12]} 9. Be2 {[%emt 0:00:01]} Nc6 {[%emt 0:00:57]} 10. O-O {[%emt 0:00:04]} d5 11. Na4 {[%emt 0:00:26]} d4 {[%emt 0:01:12]} 12. Ne5 {[%emt 0:02:29]} Nb4 {[%emt 0:02:05]} 13. Nc4 {[%emt 0:04:50]} dxe3 {[%emt 0:02:25]} 14. dxe3 {[%emt 0:00:20]} Be4 {[%emt 0:01:42]} 15. c3 {[%emt 0:01:26]} Qxd1 {[%emt 0:03:16]} 16. Rfxd1 {[%emt 0:00:31]} Nc6 {[%emt 0:01:16]} 17. Nd2 {[%emt 0:02:06]} Rab8 {[%emt 0:02:41]} 18. Ba3 {[%emt 0:01:58]} Bc2 {[%emt 0:00:51]} 19. Rdc1 {[%emt 0:00:04]} Bxb3 {[%emt 0:00:12]} 20. Nxc5 {[%emt 0:02:31]} a4 {[%emt 0:00:38]} 21. Nxa4 {[%emt 0:03:22]} Bxa4 {[%emt 0:00:10]} 22. Bxe7 {[%emt 0:00:03]} Nxe7 {[%emt 0:00:01]} 23. Rxa4 {[%emt 0:00:01]} Rb2 {[%emt 0:00:01]} 24. Rd4 {[%emt 0:01:10]} Nf5 {[%emt 0:01:20]} 25. Rd3 {[%emt 0:00:24]} Nxe3 {[%emt 0:01:41]} 26. c4 {[%emt 0:01:47]} Nc2 {[%emt 0:00:01]} 27. Bf3 {[%emt 0:01:07]} Nb4 {[%emt 0:00:10]} 28. Rd6 {[%emt 0:01:08]} Nfd5 {[%emt 0:01:05]} 29. cxd5 {[%emt 0:01:01]} Rxd2 {[%emt 0:00:01]} 30. Rd7 {[%emt 0:00:10]} Nxd5 {[%emt 0:00:36]} 31. Bxd5 {[%emt 0:00:03]} exd5 {[%emt 0:00:04]} 32. Rxa7 {[%emt 0:00:27]} g6 {[%emt 0:00:01]} 33. Rac7 {[%emt 0:00:06]} Re8 {[%emt 0:00:08]} 34. Rc8 {[%emt 0:00:07]} Rxc8 {[%emt 0:00:03]} 35. Rxc8+ {[%emt 0:00:01]} Kg7 {[%emt 0:00:00]} 36. Re8 {[%emt 0:00:30]} h5 {[%emt 0:00:18]} 37. g3 {[%emt 0:00:13]} Kf6 {[%emt 0:00:31]} 38. Re5 {[%emt 0:00:06]} d4 {[%emt 0:00:02]} 39. h3 {[%emt 0:00:16]} d3 {[%emt 0:00:04]} 40. g4 {[%emt 0:00:08]} hxg4 {[%emt 0:00:02]} 41. hxg4 {[%emt 0:00:00]} Rc2 {[%emt 0:00:24]} 42. g5+ {[%emt 0:00:17]} Kg7 {[%emt 0:00:06]} 43. Rd5 {[%emt 0:00:06]} d2 {[%emt 0:00:54]} 44. Kf1 {[%emt 0:00:00]} Rc4 {[%emt 0:00:12]} 45. Ke2 {[%emt 0:00:32]} Rxf4 {[%emt 0:00:45]} 46. Kxd2 {[%emt 0:00:01]} Re4 {[%emt 0:00:07]} 47. Kd3 {[%emt 0:00:04]} Re1 {[%emt 0:00:10]} 48. Kd2 {[%emt 0:00:15]} Re6 {[%emt 0:00:02]} 49. Kd3 {[%emt 0:00:05]} Re1 {[%emt 0:00:43]} 50. Ra5 {[%emt 0:00:04]} Re7 {[%emt 0:00:49]} 51. Kd4 {[%emt 0:00:22]} f6 {[%emt 0:00:01]} 52. gxf6+ {[%emt 0:00:03]} Kxf6 {[%emt 0:00:01]} 53. Ra1 {[%emt 0:00:25]} g5 {[%emt 0:00:03]} 54. Rf1+ {[%emt 0:00:13]} Kg6 {[%emt 0:00:03]} 55. Rg1 {[%emt 0:00:01]} Re8 {[%emt 0:00:02]} 56. Kd3 {[%emt 0:00:01]} Re7 {[%emt 0:00:24]} 57. Kd4 {[%emt 0:00:01]} Kf5 {[%emt 0:02:25]} 58. Rf1+ {[%emt 0:00:01]} Kg4 {[%emt 0:00:04]} 59. Rg1+ {[%emt 0:00:01]} Kh4 {[%emt 0:00:11]} 60. Rh1+ {[%emt 0:00:01]} Kg4 {[%emt 0:00:05]} 61. Rg1+ {[%emt 0:00:00]} Kh5 {[%emt 0:00:00]} 62. Rh1+ {[%emt 0:00:01]} Kg6 {[%emt 0:00:01]} 63. Rg1 {[%emt 0:00:00]} Re8 {[%emt 0:00:04]} 64. Kd3 {[%emt 0:00:02]} Re5 {[%emt 0:00:35]} 65. Kd4 {[%emt 0:00:02]} Kf6 {[%emt 0:00:03]} 66. Rf1+ {[%emt 0:00:43]} Rf5 {[%emt 0:00:02]} 67. Rg1 {[%emt 0:00:06]} Rf4+ {[%emt 0:00:43]} 68. Ke3 {[%emt 0:00:01]} Kf5 {[%emt 0:00:01]} 69. Rg2 {[%emt 0:00:06]} Ra4 {[%emt 0:00:04]} 70. Rg1 {[%emt 0:01:15]} g4 {[%emt 0:00:02]} 71. Rb1 {[%emt 0:00:25]} Kg5 {[%emt 0:00:05]} 72. Kf2 {[%emt 0:00:08]} Kh4 {[%emt 0:00:04]} 73. Rb3 {[%emt 0:00:05]} g3+ {[%emt 0:00:09]} 74. Kg1 {[%emt 0:00:14]} Kh3 {[%emt 0:00:05]} 75. Rb1 {[%emt 0:00:02]} Ra2 {[%emt 0:00:09]} 76. Rc1 {[%emt 0:00:02]} Rg2+ {[%emt 0:00:06]} 77. Kh1 {[%emt 0:00:09]} Ra2 {[%emt 0:00:08]} 78. Kg1 {[%emt 0:00:01]} Ra3 {[%emt 0:00:08]} 79. Rf1 {[%emt 0:00:15]} Rd3 {[%emt 0:00:42]} 80. Ra1 {[%emt 0:00:04]} Re3 {[%emt 0:00:04]} 81. Rf1 {[%emt 0:00:05]} Rd3 {[%emt 0:00:36]} 82. Ra1 {[%emt 0:00:01]} Kg4 {[%emt 0:00:06]} 83. Rb1 {[%emt 0:00:02]} Kf3 {[%emt 0:00:09]} 84. Rf1+ {[%emt 0:00:02]} Kg4 {[%emt 0:00:03]} 85. Ra1 {[%emt 0:00:00]} Rb3 {[%emt 0:00:04]} 86. Rc1 {[%emt 0:00:10]} Rb8 {[%emt 0:00:05]} 87. Ra1 {[%emt 0:00:02]} Rf8 {[%emt 0:00:08]} 88. Kg2 {[%emt 0:00:09]} Rf2+ {[%emt 0:00:02]} 89. Kg1 {[%emt 0:00:01]} Kh3 {[%emt 0:00:01]} 90. Rb1 {[%emt 0:00:02]} Rh2 {[%emt 0:00:23]} 91. Ra1 {[%emt 0:00:06]} Re2 {[%emt 0:00:23]} 92. Rb1 {[%emt 0:00:05]} Kg4 {[%emt 0:00:02]} 93. Rf1 {[%emt 0:00:15]} Rd2 {[%emt 0:00:03]} 94. Ra1 {[%emt 0:00:05]} Kf3 {[%emt 0:00:03]} 95. Ra3+ {[%emt 0:00:06]} Kg4 {[%emt 0:00:06]} 96. Ra1 {[%emt 0:00:01]} Rc2 {[%emt 0:00:20]} 97. Rb1 {[%emt 0:00:02]} Ra2 {[%emt 0:00:09]} 98. Rc1 {[%emt 0:00:01]} Kh3 {[%emt 0:00:07]} 99. Rb1 {[%emt 0:00:02]} Ra3 {[%emt 0:00:03]} 100. Rf1 {[%emt 0:00:07]} Rb3 {[%emt 0:00:06]} 101. Ra1 {[%emt 0:00:05]} g2 {[%emt 0:00:02]} 102. Rc1 {[%emt 0:00:17]} Ra3 {[%emt 0:00:07]} 103. Rb1 {[%emt 0:00:11]} Rf3 {[%emt 0:00:05]} 104. Ra1 {[%emt 0:00:11]} Kg3 {[%emt 0:00:02]} 105. Ra3 {[%emt 0:00:37]} Kg4 {[%emt 0:00:04]} 106. Ra2 {[%emt 0:00:09]} Kh3 {[%emt 0:00:08]} 107. Rxg2 {[%emt 0:00:12]} Ra3 {[%emt 0:00:01]} 108. Rh2+ {[%emt 0:00:03]} Kg3 {[%emt 0:00:02]} 109. Rg2+ {[%emt 0:00:01]} Kf3 {[%emt 0:00:01]} 110. Rf2+ {[%emt 0:00:01]} Ke3 {[%emt 0:00:01]} 111. Kg2 {[%emt 0:00:06]} Ra8 {[%emt 0:00:02]} 112. Rf3+ {[%emt 0:00:03]} Ke4 {[%emt 0:00:02]} 113. Rb3 {[%emt 0:00:04]} 1/2-1/2

[Event "EUSA-ch Open 2019"]
[Site "Budapest"]
[Date "2019.07.25"]
[Round "4.4"]
[White "Petrosyan, Tigran S."]
[Black "Galburd, Yan"]
[Result "0-1"]
[ECO "A06"]
[WhiteElo "2448"]
[BlackElo "2429"]
[Annotator "NA RC"]
[PlyCount "68"]
[EventDate "2019.07.23"]
[EventType "team-tourn"]
[EventCountry "HUN"]
[SourceTitle "playchess.com"]
[Source "ChessBase"]
[SourceQuality "1"]
[TimeControl "1500+10"]

1. Nf3 {[%emt 0:00:00]} d5 {[%emt 0:00:02]} 2. d4 {[%emt 0:00:00]} e6 {[%emt 0:00:22]} 3. c4 {[%emt 0:00:00]} a6 {[%emt 0:00:23]} 4. b3 {[%emt 0:01:46]} Bb4+ {[%emt 0:01:42]} 5. Bd2 {[%emt 0:00:25]} Be7 6. Bc3 {[%emt 0:01:40]} Nf6 {[%emt 0:00:33]} 7. Nbd2 {[%emt 0:00:03]} O-O {[%emt 0:01:33]} 8. e3 {[%emt 0:00:54]} b6 {[%emt 0:00:04]} 9. Bd3 {[%emt 0:00:37]} c5 {[%emt 0:00:09]} 10. O-O {[%emt 0:00:24]} Bb7 {[%emt 0:00:39]} 11. Qe2 {[%emt 0:00:59]} Nc6 {[%emt 0:01:17]} 12. Bb2 {[%emt 0:03:06]} Nb4 {[%emt 0:00:11]} 13. Bb1 {[%emt 0:00:09]} Rc8 {[%emt 0:00:50]} 14. a3 {[%emt 0:00:38]} Nc6 {[%emt 0:00:01]} 15. Bd3 {[%emt 0:00:01]} dxc4 {[%emt 0:00:06]} 16. bxc4 {[%emt 0:00:03]} Qc7 {[%emt 0:00:26]} 17. Rac1 {[%emt 0:00:30]} Rfd8 {[%emt 0:00:08]} 18. Rfd1 {[%emt 0:00:25]} Qb8 {[%emt 0:01:00]} 19. Nb3 {[%emt 0:01:42]} cxd4 {[%emt 0:01:14]} 20. exd4 {[%emt 0:01:05]} Qa8 {[%emt 0:01:04]} 21. Ng5 {[%emt 0:03:43]} Re8 {[%emt 0:05:10]} 22. Re1 {[%emt 0:04:41]} g6 {[%emt 0:05:38]} 23. Bb1 {[%emt 0:01:41]} b5 {[%emt 0:01:42]} 24. cxb5 {[%emt 0:01:25]} axb5 {[%emt 0:00:01]} 25. Nc5 {[%emt 0:00:19]} Na5 {[%emt 0:00:57]} 26. Ba2 {[%emt 0:01:34]} Nc4 {[%emt 0:00:24]} 27. Ba1 {[%emt 0:00:43]} Bd5 {[%emt 0:00:27]} 28. Rc3 {[%emt 0:00:03]} h6 {[%emt 0:00:32]} 29. Nh3 {[%emt 0:00:35]} Bxg2 {[%emt 0:00:26]} 30. Nf4 {[%emt 0:00:01]} Bd5 {[%emt 0:00:10]} 31. Rg3 {[%emt 0:00:06]} Bd6 {[%emt 0:00:49]} 32. Nxd5 {[%emt 0:00:11]} exd5 {[%emt 0:00:06]} 33. Qf1 {[%emt 0:00:21]} Bxg3 {[%emt 0:00:15]} 34. hxg3 {[%emt 0:00:01]} Qxa3 {[%emt 0:00:12]} 0-1

[Event "EUSA-ch Open 2019"]
[Site "Budapest"]
[Date "2019.07.26"]
[Round "6.3"]
[White "Shevchenko, Kirill"]
[Black "Lewicki, Miroslaw"]
[Result "1-0"]
[ECO "D37"]
[WhiteElo "2536"]
[BlackElo "2351"]
[Annotator "ChessBase"]
[PlyCount "117"]
[EventDate "2019.07.23"]
[EventType "team-tourn"]
[EventCountry "HUN"]
[SourceTitle "playchess.com"]
[Source "ChessBase"]
[SourceQuality "1"]
[TimeControl "1500+10"]

1. d4 {[%emt 0:00:00]} Nf6 {[%emt 0:00:00]} 2. c4 {[%emt 0:00:00]} e6 {[%emt 0:00:00]} 3. Nc3 {[%emt 0:00:00]} d5 {[%emt 0:00:00]} 4. Nf3 {[%emt 0:00:01]} Be7 {[%emt 0:00:03]} 5. g3 {[%emt 0:00:09]} O-O {[%emt 0:00:03]} 6. Bg2 {[%emt 0:00:01]} b6 {[%emt 0:00:02]} 7. cxd5 {[%emt 0:00:54]} exd5 {[%emt 0:00:01]} 8. O-O {[%emt 0:00:12]} Bb7 {[%emt 0:00:03]} 9. Bf4 {[%emt 0:01:32]} c5 {[%emt 0:00:43]} 10. dxc5 {[%emt 0:02:28]} bxc5 {[%emt 0:00:06]} 11. Nh4 {[%emt 0:00:19]} Qd7 {[%emt 0:00:35]} 12. Qb3 {[%emt 0:02:42]} c4 {[%emt 0:00:37]} 13. Qc2 {[%emt 0:00:19]} Na6 {[%emt 0:04:14]} 14. Rad1 {[%emt 0:02:00]} Rfd8 {[%emt 0:01:11]} 15. Nf5 {[%emt 0:00:50]} Bf8 {[%emt 0:00:03]} 16. Bg5 {[%emt 0:03:49]} Qe6 {[%emt 0:01:03]} 17. Bxf6 {[%emt 0:00:58]} Qxf6 {[%emt 0:00:50]} 18. Ne3 {[%emt 0:00:32]} Nb4 {[%emt 0:02:05]} 19. Qc1 {[%emt 0:01:14]} Rab8 {[%emt 0:00:45]} 20. Nexd5 {[%emt 0:01:41]} Nxd5 {[%emt 0:01:00]} 21. Bxd5 {[%emt 0:00:07]} Bxd5 {[%emt 0:00:17]} 22. Rxd5 {[%emt 0:00:08]} Rxd5 {[%emt 0:00:27]} 23. Nxd5 {[%emt 0:00:01]} Qxb2 {[%emt 0:00:01]} 24. Qxc4 {[%emt 0:00:01]} Qd2 {[%emt 0:00:18]} 25. a4 {[%emt 0:03:29]} h6 {[%emt 0:00:42]} 26. Kg2 {[%emt 0:01:43]} a5 {[%emt 0:00:23]} 27. h4 {[%emt 0:00:46]} Bb4 {[%emt 0:01:02]} 28. Rc1 {[%emt 0:00:19]} Re8 {[%emt 0:00:57]} 29. Rc2 {[%emt 0:00:15]} Qd1 {[%emt 0:00:11]} 30. Nf4 {[%emt 0:01:59]} Qd7 {[%emt 0:00:27]} 31. Qc6 {[%emt 0:01:05]} Qxc6+ {[%emt 0:00:10]} 32. Rxc6 {[%emt 0:00:01]} Re4 {[%emt 0:00:06]} 33. Kf3 {[%emt 0:00:06]} Rd4 {[%emt 0:00:04]} 34. Ke3 {[%emt 0:00:26]} Rd1 {[%emt 0:00:21]} 35. Rc8+ {[%emt 0:00:07]} Kh7 {[%emt 0:00:05]} 36. Rc7 {[%emt 0:00:04]} Ra1 {[%emt 0:02:21]} 37. Rxf7 {[%emt 0:00:12]} Rxa4 {[%emt 0:00:03]} 38. h5 {[%emt 0:00:12]} Kg8 {[%emt 0:00:47]} 39. Rb7 {[%emt 0:00:34]} Bc5+ {[%emt 0:01:02]} 40. Kf3 {[%emt 0:00:01]} Bd6 {[%emt 0:01:52]} 41. Ne6 {[%emt 0:00:12]} Be5 {[%emt 0:00:04]} 42. e4 {[%emt 0:00:11]} Rc4 {[%emt 0:01:18]} 43. Rb5 {[%emt 0:00:15]} Bc3 {[%emt 0:00:09]} 44. Rc5 {[%emt 0:00:12]} Rxc5 45. Nxc5 {[%emt 0:00:00]} Kf7 {[%emt 0:00:09]} 46. Ke3 {[%emt 0:00:03]} Bb4 {[%emt 0:00:13]} 47. Na4 {[%emt 0:00:08]} Ke6 {[%emt 0:00:02]} 48. f4 {[%emt 0:00:07]} Be1 {[%emt 0:00:02]} 49. g4 {[%emt 0:00:01]} Kf6 {[%emt 0:00:10]} 50. e5+ {[%emt 0:00:06]} Ke7 {[%emt 0:00:16]} 51. Kd4 {[%emt 0:00:19]} Bf2+ {[%emt 0:00:42]} 52. Kd5 {[%emt 0:00:02]} Be3 {[%emt 0:00:08]} 53. f5 {[%emt 0:00:02]} Bf2 {[%emt 0:00:11]} 54. Kc6 {[%emt 0:00:16]} Bd4 {[%emt 0:00:12]} 55. e6 {[%emt 0:00:04]} Be3 {[%emt 0:00:10]} 56. Nc3 {[%emt 0:00:02]} Bf2 {[%emt 0:00:28]} 57. Nd5+ {[%emt 0:00:05]} Ke8 {[%emt 0:00:04]} 58. Kb5 {[%emt 0:00:03]} Be1 {[%emt 0:00:16]} 59. Nb6 {[%emt 0:00:23]} 1-0

[Event "EUSA-ch Open 2019"]
[Site "Budapest"]
[Date "2019.07.26"]
[Round "6.4"]
[White "Molenda, Marcin"]
[Black "Golubka, Petro"]
[Result "0-1"]
[ECO "B90"]
[WhiteElo "2387"]
[BlackElo "2483"]
[Annotator "ChessBase"]
[PlyCount "83"]
[EventDate "2019.07.23"]
[EventType "team-tourn"]
[EventCountry "HUN"]
[SourceTitle "playchess.com"]
[Source "ChessBase"]
[SourceQuality "1"]
[TimeControl "1500+10"]

1. e4 {[%emt 0:00:00]} c5 {[%emt 0:00:00]} 2. Nf3 {[%emt 0:00:00]} d6 {[%emt 0:00:02]} 3. d4 {[%emt 0:00:00]} cxd4 {[%emt 0:00:03]} 4. Nxd4 {[%emt 0:00:00]} Nf6 {[%emt 0:00:02]} 5. Nc3 {[%emt 0:00:02]} a6 {[%emt 0:00:02]} 6. f3 {[%emt 0:00:02]} e6 {[%emt 0:00:03]} 7. Be3 {[%emt 0:00:03]} b5 {[%emt 0:00:02]} 8. Qd2 {[%emt 0:00:22]} Bb7 {[%emt 0:00:02]} 9. g4 {[%emt 0:00:14]} h6 {[%emt 0:00:05]} 10. O-O-O {[%emt 0:00:12]} Nbd7 {[%emt 0:00:03]} 11. h4 {[%emt 0:00:10]} b4 {[%emt 0:00:04]} 12. Na4 {[%emt 0:00:06]} d5 {[%emt 0:00:14]} 13. Rg1 {[%emt 0:00:47]} g5 {[%emt 0:00:17]} 14. hxg5 {[%emt 0:00:18]} hxg5 {[%emt 0:00:02]} 15. Bxg5 {[%emt 0:00:20]} Qa5 {[%emt 0:00:08]} 16. b3 {[%emt 0:00:16]} dxe4 {[%emt 0:00:10]} 17. f4 {[%emt 0:02:43]} Bd5 {[%emt 0:02:28]} 18. Kb1 {[%emt 0:00:13]} O-O-O {[%emt 0:00:21]} 19. Bc4 {[%emt 0:01:51]} Re8 {[%emt 0:01:12]} 20. Qe2 {[%emt 0:01:45]} Kb7 {[%emt 0:00:24]} 21. Bxd5+ {[%emt 0:02:25]} exd5 {[%emt 0:00:04]} 22. Nf5 {[%emt 0:00:04]} Qb5 {[%emt 0:00:54]} 23. Qf2 {[%emt 0:02:13]} Qc6 {[%emt 0:01:55]} 24. Bxf6 {[%emt 0:00:44]} Nxf6 {[%emt 0:00:11]} 25. g5 {[%emt 0:00:08]} Nd7 {[%emt 0:01:20]} 26. Qd4 {[%emt 0:00:24]} Rh2 {[%emt 0:01:07]} 27. Qxd5 {[%emt 0:01:57]} Qxd5 {[%emt 0:00:10]} 28. Rxd5 {[%emt 0:00:02]} Nb6 {[%emt 0:00:27]} 29. Nxb6 {[%emt 0:00:09]} Kxb6 {[%emt 0:00:01]} 30. Ne3 {[%emt 0:01:42]} Kc6 {[%emt 0:03:40]} 31. Rf5 {[%emt 0:00:22]} Re2 {[%emt 0:00:39]} 32. Nc4 {[%emt 0:00:09]} e3 {[%emt 0:01:02]} 33. Rf6+ {[%emt 0:00:36]} Kd5 {[%emt 0:00:20]} 34. Rxf7 {[%emt 0:00:50]} Bc5 {[%emt 0:00:48]} 35. Rf5+ {[%emt 0:00:43]} Kc6 {[%emt 0:00:08]} 36. Ne5+ {[%emt 0:00:06]} Kb7 {[%emt 0:00:02]} 37. Nd3 {[%emt 0:00:23]} Bd4 {[%emt 0:00:04]} 38. g6 {[%emt 0:02:18]} Rd2 {[%emt 0:00:33]} 39. Rf7+ {[%emt 0:04:08]} Kc6 {[%emt 0:03:02]} 40. g7 {[%emt 0:02:32]} e2 {[%emt 0:01:28]} 41. Rg6+ {[%emt 0:00:13]} Kd5 {[%emt 0:01:37]} 42. c4+ {Ke5} 0-1